fUSD/lending_fUSD_20251006
["ID","MTS","AMOUNT","RATE_DAILY","PERIOD"]
[389665282,1759777835620,-1000.0,0.00029688,2]
[389665283,1759777835632,-630.58913309,0.00029693,7]
[389665284,1759777835643,-5363.12218461,0.00029698,2]
[389665285,1759777835652,-700.0,0.000297,10]
[389665286,1759777835662,-816.98362104,0.00029701,2]
[389665287,1759777835671,-1049.130469,0.00029701,2]
[389665288,1759777835680,-1000.0,0.00029703,2]
[389665289,1759777835691,-1634.57835756,0.00029704,7]
[389665290,1759777835701,-520.49,0.00029704,2]
[389665291,1759777835711,-630.58913309,0.00029707,7]
[389665292,1759777835728,-5363.12218461,0.00029708,2]
[389665293,1759777835739,-266.96497912,0.00029709,2]
[389665294,1759777835751,-5000.0,0.0002971,2]
[389665295,1759777835760,-699.46676088,0.00029711,2]
[389665296,1759777835771,-162.46,0.00029711,2]
[389665297,1759777835781,-370.79873765,0.00029715,2]
[389665298,1759777835791,-5363.12218461,0.00029719,2]
[389665299,1759777835800,-33024.0633753,0.00029719,3]
[389665300,1759777835809,-33024.0633753,0.00029719,3]
[389665301,1759777835818,-11295.78,0.00029721,7]
[389665302,1759777835828,-500.0,0.00029723,7]
[389665303,1759777835837,-155.458996,0.00029723,4]
[389665304,1759777835846,-152.960804,0.00029723,4]
[389665305,1759777835856,-154.061899,0.00029723,4]
[389665306,1759777835865,-500.0,0.00029723,7]
[389665307,1759777835874,-195.0,0.00029725,2]
[389665308,1759777835883,-360.93875216,0.00029725,7]
[389665309,1759777835892,-500.0,0.00029726,7]
[389665310,1759777835900,-500.0,0.00029726,7]
[389665311,1759777835910,-717.6,0.00029726,7]
[389665312,1759777835918,-500.0,0.00029726,7]
[389665313,1759777835930,-500.0,0.00029726,7]
[389665314,1759777835939,-500.0,0.00029726,7]
[389665315,1759777835948,-500.0,0.00029726,7]
[389665316,1759777835957,-1049.13046899,0.00029727,2]
[389665317,1759777835967,-550.56669003,0.00029727,7]
[389665318,1759777835975,-5470.28,0.00029727,7]
[389665319,1759777835984,-5363.12218461,0.00029729,2]
[389665320,1759777835993,-3280.35787577,0.00029729,2]
[389665321,1759777836002,-500.0,0.00029729,7]
[389665322,1759777836011,-67455.88074072,0.0002973,7]
[389665323,1759777836169,-969.14300065,0.0002973,7]
[389665324,1759777836180,-509.57288024,0.0002973,7]
[389665325,1759777836222,-500.0,0.00016432,2]
[389665326,1759777836231,-500.0,0.00016432,2]
[389665327,1759777836240,-314.41102805,0.0002973,7]
[389665328,1759777836252,-504.66606,0.0002973,7]
[389665329,1759777836263,-612.41257635,0.0002973,7]
[389665330,1759777836271,-8669.73643694,0.0002973,2]
[389665331,1759777836282,-699.46676082,0.00029731,2]
[389665332,1759777836291,-211.26891287,0.00029731,2]
[389665333,1759777836300,-158.88013132,0.00029732,2]
[389665334,1759777836309,-211.26891286,0.00029734,2]
[389665335,1759777836318,-211.26891286,0.00029737,2]
[389665336,1759777836327,-20252.41170261,0.00029737,7]
[389665337,1759777836336,-1634.57835756,0.00029738,7]
[389665338,1759777836345,-211.26891286,0.00029739,2]
[389665339,1759777836355,-20252.41170261,0.00029739,7]
[389665340,1759777836364,-266.96497912,0.0002974,2]
[389665341,1759777836373,-20744.3826,0.0002974,2]
[389665342,1759777836382,-392.4851,0.0002974,2]
[389665343,1759777836391,-210.3168785,0.00029741,12]
[389665344,1759777836401,-183.33164388,0.00029741,5]
[389665345,1759777836410,-2869.57437533,0.00029741,2]
[389665346,1759777836419,-476.3409247,0.00029741,2]
[389665347,1759777836428,-211.26891286,0.00029742,2]
[389665348,1759777836437,-7645.22321836,0.00029745,2]
[389665349,1759777836446,-696.84420614,0.00029745,2]
[389665350,1759777836456,-700.53358182,0.00029746,7]
[389665351,1759777836466,-1634.57835756,0.00029749,7]
[389665352,1759777836475,-360.93875216,0.0002975,7]
[389665353,1759777836484,-699.46676082,0.00029751,2]
[389665354,1759777836494,-1634.57835756,0.00029751,7]
[389665355,1759777836503,-1049.13046899,0.00029753,2]
[389665356,1759777836512,-2551.0,0.00029757,2]
[389665357,1759777836521,-1471.37464386,0.0002976,7]
[389665358,1759777836530,-195.0,0.00029761,2]
[389665359,1759777836539,-28932.01671802,0.00029767,7]
[389665360,1759777836548,-1471.37464386,0.00029768,7]
[389665361,1759777836558,-20252.41170261,0.00029768,7]
[389665362,1759777836567,-266.96497912,0.0002977,2]
[389665363,1759777836576,-699.46676082,0.00029771,2]
[389665364,1759777836585,-500.197567,0.00029773,5]
[389665365,1759777836594,-167.98833097,0.00029773,5]
[389665366,1759777836603,-1634.57835756,0.00029774,7]
[389665367,1759777836612,-1471.37464386,0.00029777,7]
[389665368,1759777836621,-1049.13046899,0.00029778,2]
[389665369,1759777836630,-183.33164386,0.00029786,5]
[389665370,1759777836639,-2869.57437533,0.00029786,2]
[389665371,1759777836651,-476.34092468,0.00029786,2]
[389665372,1759777836661,-5112.0804482,0.00029787,7]
[389665373,1759777836674,-734.56262366,0.00029787,7]
[389665374,1759777836687,-437.54905257,0.00029787,7]
[389665375,1759777836701,-1046.95094423,0.00029787,7]
[389665376,1759777836715,-645.62333246,0.00029787,7]
[389665377,1759777836729,-481.03297296,0.00029787,7]
[389665378,1759777836741,-633.53491241,0.00029787,7]
[389665381,1759777837373,-500.0,0.00016432,2]
[389665382,1759777837383,-8.02336949,0.00016432,2]
[389665383,1759777837480,-491.97663051,0.00016432,2]
[389665384,1759777837491,-500.0,0.00016432,2]
[389665385,1759777837501,-500.0,0.00016432,2]
[389665386,1759777837511,-500.0,0.00016432,2]
[389665387,1759777837521,-231.2898093,0.00016432,2]
[389665388,1759777837532,-500.0,0.00016432,2]
[389665389,1759777837543,-500.0,0.00016432,2]
[389665390,1759777837553,-500.0,0.00016432,2]
[389665391,1759777837563,-500.0,0.00016432,2]
[389665392,1759777837574,-73.22533303,0.00016432,2]
[389665393,1759777837587,-426.77466697,0.00016432,2]
[389665394,1759777837597,-500.0,0.00016432,2]
[389665395,1759777837607,-500.0,0.00016432,2]
[389665396,1759777837618,-3277.42533303,0.00029618,7]
[389665397,1759777837631,-603.59986069,0.00029618,7]
[389665398,1759777837641,-3170.10013931,0.00029631,7]
[389665399,1759777837653,-710.92505441,0.00029631,7]
[389665400,1759777837663,-3881.02519372,0.00029667,7]
[389665401,1759777837675,-3881.02519372,0.00029775,7]
[389665402,1759777837685,-6906.83443691,0.00029787,7]
[389665404,1759777837698,-12933.84799462,0.00029787,7]
[389665405,1759777837710,-7645.22321835,0.00029788,2]
[389665407,1759777837720,-696.84420612,0.00029788,2]
[389665408,1759777837730,-700.53358182,0.0002979,7]
[389665409,1759777837740,-699.46676082,0.0002979,2]
[389665410,1759777837750,-815.92157843,0.00029791,2]
[389665411,1759777837760,-150.5,0.00029791,2]
[389665412,1759777837770,-150.5,0.00029791,2]
[389665413,1759777837781,-150.5,0.00029791,2]
[389665414,1759777837791,-150.5,0.00029791,2]
[389665415,1759777837802,-150.5,0.00029791,2]
[389665416,1759777837812,-150.5,0.00029791,2]
[389665417,1759777837823,-150.5,0.00029791,2]
[389665418,1759777837833,-150.5,0.00029791,2]
[389665419,1759777837843,-150.5,0.00029791,2]
[389665420,1759777837853,-150.5,0.00029791,2]
[389665421,1759777837864,-150.5,0.00029791,2]
[389665422,1759777837874,-150.5,0.00029791,2]
[389665423,1759777837884,-150.5,0.00029791,2]
[389665424,1759777837895,-150.5,0.00029791,2]
[389665425,1759777837905,-150.5,0.00029791,2]
[389665426,1759777837917,-150.5,0.00029791,2]
[389665427,1759777837927,-150.5,0.00029791,2]
[389665428,1759777837938,-150.5,0.00029791,2]
[389665429,1759777837949,-150.5,0.00029791,2]
[389665430,1759777837959,-150.5,0.00029791,2]
[389665431,1759777837970,-150.5,0.00029791,2]
[389665432,1759777837980,-150.5,0.00029791,2]
[389665433,1759777837990,-150.5,0.00029791,2]
[389665434,1759777838000,-150.5,0.00029791,2]
[389665435,1759777838011,-150.5,0.00029791,2]
[389665436,1759777838021,-815.92157843,0.00029791,2]
[389665437,1759777838032,-150.5,0.00029791,2]
[389665438,1759777838042,-150.5,0.00029791,2]
[389665439,1759777838052,-150.5,0.00029791,2]
[389665440,1759777838062,-150.5,0.00029791,2]
[389665441,1759777838073,-150.5,0.00029791,2]
[389665442,1759777838083,-1106.53308546,0.00029791,2]
[389665443,1759777838092,-360.93875216,0.00029792,7]
[389665444,1759777838103,-360.93875216,0.00029794,7]
[389665445,1759777838113,-3881.02519372,0.00029796,7]
[389665446,1759777838123,-151.0,0.00029798,7]
[389665447,1759777838134,-500.0,0.00029799,7]
[389665448,1759777838146,-500.0,0.00029799,7]
[389665449,1759777838158,-15703.95,0.00029799,7]
[389665450,1759777838170,-500.0,0.00029799,7]
[389665451,1759777838181,-500.0,0.00029799,7]
[389665452,1759777838194,-511.2939625,0.00029799,7]
[389665453,1759777838205,-599.18539349,0.00029799,7]
[389665454,1759777838216,-500.0,0.00029799,7]
[389665455,1759777838226,-500.0,0.00029799,7]
[389665456,1759777838238,-150.5,0.00029799,2]
[389665457,1759777838248,-630.58913309,0.000298,7]
[389665458,1759777838258,-266.96497912,0.000298,2]
[389665459,1759777838268,-310.8921524,0.000298,7]
[389665460,1759777838282,-5000.0,0.000298,14]
[389665461,1759777838292,-1250.0,0.000298,10]
[389665462,1759777838303,-169.1,0.000298,21]
[389665463,1759777838314,-33024.0633753,0.000298,3]
[389665464,1759777838326,-2814834.37110295,0.000298,14]
[389665465,1759777838336,-463996.77399703,0.00029801,3]
[389665466,1759777838351,-20519.0,0.00029801,3]
[389665471,1759777839483,-1150.48,0.00028568,2]
[389665472,1759777839494,-43869.24000697,0.00029801,3]
[389665473,1759777839504,-15726.2210491,0.00029801,3]
[389665474,1759777839513,-1049.13046899,0.00029804,2]
[389665475,1759777839523,-152.960804,0.00029805,3]
[389665476,1759777839533,-13060.34282196,0.00029806,7]
[389665477,1759777839545,-4298.86720886,0.00029806,7]
[389665478,1759777839557,-700.53358182,0.00029806,7]
[389665479,1759777839567,-17359.21003082,0.00029807,7]
[389665480,1759777839577,-248.56326902,0.00029808,7]
[389665481,1759777839587,-211.03069848,0.00029808,7]
[389665482,1759777839598,-155.62679304,0.00029808,7]
[389665483,1759777839608,-150.0,0.00029808,7]
[389665484,1759777839618,-193.46476501,0.00029808,7]
[389665485,1759777839628,-151.0,0.00029808,7]
[389665486,1759777839639,-150.0,0.00029808,7]
[389665487,1759777839648,-296.9248418,0.00029808,7]
[389665488,1759777839659,-11295.78,0.00029809,7]
[389665489,1759777839669,-1000.0,0.0002981,11]
[389665490,1759777839679,-1000.0,0.0002981,11]
[389665491,1759777839689,-1000.0,0.0002981,11]
[389665492,1759777839699,-1000.0,0.0002981,11]
[389665493,1759777839710,-1000.0,0.0002981,11]
[389665494,1759777839720,-1000.0,0.0002981,11]
[389665495,1759777839730,-1000.0,0.0002981,11]
[389665496,1759777839740,-1000.0,0.0002981,11]
[389665497,1759777839751,-500.0,0.0002981,7]
[389665498,1759777839760,-500.0,0.0002981,7]
[389665499,1759777839770,-500.0,0.0002981,7]
[389665500,1759777839782,-500.0,0.0002981,7]
[389665501,1759777839792,-500.0,0.0002981,7]
[389665502,1759777839802,-500.0,0.0002981,7]
[389665503,1759777839812,-500.0,0.0002981,7]
[389665504,1759777839822,-500.0,0.0002981,7]
[389665505,1759777839831,-500.0,0.0002981,7]
[389665506,1759777839840,-500.0,0.0002981,7]
[389665507,1759777839850,-500.0,0.0002981,7]
[389665508,1759777839860,-158.88406336,0.0002981,7]
[389665509,1759777839870,-501.54448636,0.0002981,7]
[389665510,1759777839879,-500.0,0.0002981,7]
[389665511,1759777839889,-500.0,0.0002981,7]
[389665512,1759777839899,-502.78983337,0.0002981,7]
[389665513,1759777839909,-11295.78,0.0002981,7]
[389665514,1759777839919,-1463.66292873,0.0002981,7]
[389665515,1759777839940,-909.062448,0.00022672,2]
[389665516,1759777839955,-271.937552,0.00022672,2]
[389665517,1759777839964,-358.262448,0.0002981,7]
[389665518,1759777839976,-785.28740855,0.0002981,7]
[389665541,1759777840689,-390.89349996,0.0002981,7]
[389665542,1759777840708,-6693.96985564,0.0002981,7]
[389665543,1759777840721,-1244.63357121,0.0002981,7]
[389665550,1759777842599,-1181.0,0.00025672,2]
[389665552,1759777842609,-359.07028791,0.0002981,7]
[389665553,1759777842618,-4130.37971209,0.0002981,7]
[389665554,1759777843231,-7165.40028791,0.0002981,7]
[389665555,1759777843242,-11295.78,0.0002981,7]
[389665556,1759777843254,-8940.19881034,0.0002981,7]
[389665557,1759777843290,-2355.58118966,0.0002981,7]
[389665558,1759777843300,-11295.78,0.0002981,7]
[389665559,1759777843310,-500.0,0.0002981,7]
[389665560,1759777843319,-500.0,0.0002981,7]
[389665561,1759777843329,-11295.78,0.0002981,7]
[389665562,1759777843338,-397.9007077,0.0002981,7]
[389665564,1759777843348,-500.0,0.0002981,7]
[389665566,1759777843358,-11295.78,0.0002981,7]
[389665568,1759777843367,-502.59233529,0.0002981,7]
[389665569,1759777843376,-11295.78,0.0002981,7]
[389665570,1759777843386,-11295.78,0.0002981,7]
[389665571,1759777843395,-11295.78,0.0002981,7]
[389665572,1759777843405,-11295.78,0.0002981,7]
[389665573,1759777843414,-11295.78,0.0002981,7]
[389665574,1759777843424,-11295.78,0.0002981,7]
[389665575,1759777843434,-11295.78,0.0002981,7]
[389665576,1759777843443,-11295.78,0.0002981,7]
[389665583,1759777843798,-11295.78,0.0002981,7]
[389665584,1759777843822,-11295.78,0.0002981,7]
[389665585,1759777843844,-11295.78,0.0002981,7]
[389665586,1759777843856,-11295.78,0.0002981,7]
[389665587,1759777843866,-11295.78,0.0002981,7]
[389665588,1759777843875,-11296.00029222,0.0002981,7]
[389665589,1759777843884,-520.286722,0.0002981,7]
[389665590,1759777843894,-15703.95,0.0002981,7]
[389665591,1759777843903,-15703.95,0.0002981,7]
[389665592,1759777843913,-15703.95,0.0002981,7]
[389665593,1759777843922,-15703.95,0.0002981,7]
[389665594,1759777843933,-15703.95,0.0002981,7]
[389665595,1759777843943,-15703.95,0.0002981,7]
[389665596,1759777843952,-15703.95,0.0002981,7]
[389665597,1759777843962,-15703.95,0.0002981,7]
[389665598,1759777843971,-15703.95,0.0002981,7]
[389665599,1759777843980,-15703.95,0.0002981,7]
[389665600,1759777843990,-15703.95,0.0002981,7]
[389665601,1759777843999,-15703.95,0.0002981,7]
[389665602,1759777844009,-15703.95,0.0002981,7]
[389665603,1759777844018,-15703.95,0.0002981,7]
[389665604,1759777844027,-15703.95,0.0002981,7]
[389665605,1759777844036,-500.0,0.0002981,7]
[389665606,1759777844046,-15703.95,0.0002981,7]
[389665607,1759777844055,-500.0,0.0002981,7]
[389665608,1759777844064,-15703.95,0.0002981,7]
[389665609,1759777844074,-505.91048358,0.0002981,7]
[389665610,1759777844083,-500.0,0.0002981,7]
[389665611,1759777844092,-500.0,0.0002981,7]
[389665612,1759777844101,-500.0,0.0002981,7]
[389665613,1759777844110,-500.0,0.0002981,7]
[389665614,1759777844119,-500.0,0.0002981,7]
[389665615,1759777844128,-500.0,0.0002981,7]
[389665616,1759777844138,-500.0,0.0002981,7]
[389665617,1759777844147,-500.0,0.0002981,7]
[389665618,1759777844157,-500.0,0.0002981,7]
[389665619,1759777844166,-508.11190688,0.0002981,7]
[389665620,1759777844176,-500.0,0.0002981,7]
[389665621,1759777844185,-500.0,0.0002981,7]
[389665622,1759777844194,-500.0,0.0002981,7]
[389665623,1759777844206,-500.0,0.0002981,7]
[389665624,1759777844217,-335.20707244,0.0002981,7]
[389665625,1759777844228,-699.46676082,0.0002981,2]
[389665626,1759777844239,-1186.92920558,0.00029811,2]
[389665627,1759777844249,-17359.21003082,0.00029812,7]
[389665628,1759777844259,-700.53358182,0.00029817,7]
[389665629,1759777844269,-1471.37464386,0.00029819,7]
[389665630,1759777844280,-1186.5753389,0.0002982,15]
[389665631,1759777844290,-500.0,0.0002982,7]
[389665632,1759777844299,-500.0,0.0002982,7]
[389665633,1759777844309,-500.0,0.0002982,7]
[389665634,1759777844319,-500.0,0.0002982,7]
[389665635,1759777844328,-500.0,0.0002982,7]
[389665636,1759777844338,-500.0,0.0002982,7]
[389665637,1759777844347,-1000.0,0.0002982,7]
[389665638,1759777844358,-1000.0,0.0002982,30]
[389665639,1759777844368,-500.0,0.0002982,7]
[389665640,1759777844378,-500.0,0.0002982,7]
[389665641,1759777844388,-283.06371623,0.0002982,7]
[389665642,1759777844398,-500.0,0.0002982,7]
[389665643,1759777844408,-500.0,0.0002982,7]
[389665644,1759777844418,-500.0,0.0002982,7]
[389665645,1759777844428,-271.8132242,0.0002982,7]
[389665646,1759777844438,-500.0,0.0002982,7]
[389665647,1759777844447,-5470.28,0.0002982,7]
[389665648,1759777844457,-2180.61,0.0002982,7]
[389665649,1759777844467,-500.0,0.00029821,7]
[389665650,1759777844477,-500.0,0.00029821,7]
[389665651,1759777844486,-512.97085665,0.00029821,7]
[389665652,1759777844496,-500.0,0.00029821,7]
[389665653,1759777844506,-500.0,0.00029821,7]
[389665654,1759777844515,-500.0,0.00029821,7]
[389665655,1759777844524,-379.73687285,0.00029821,7]
[389665656,1759777844534,-500.0,0.00029821,7]
[389665657,1759777844545,-500.0,0.00029821,7]
[389665658,1759777844554,-500.0,0.00029821,7]
[389665659,1759777844563,-500.0,0.00029821,7]
[389665660,1759777844573,-1000.0,0.00029821,30]
[389665661,1759777844584,-1000.0,0.00029821,30]
[389665662,1759777844594,-519.12728611,0.00029821,7]
[389665663,1759777844604,-561.30564899,0.00029821,7]
[389665664,1759777844615,-500.0,0.00029821,7]
[389665665,1759777844625,-500.0,0.00029821,7]
[389665666,1759777844636,-500.0,0.00029821,7]
[389665667,1759777844645,-500.0,0.00029821,7]
[389665668,1759777844656,-500.0,0.00029821,7]
[389665669,1759777844666,-500.0,0.00029821,7]
[389665670,1759777844675,-500.0,0.00029821,7]
[389665671,1759777844685,-500.0,0.00029821,7]
[389665672,1759777844695,-376.72723295,0.00029821,7]
[389665673,1759777844705,-5470.28,0.00029821,7]
[389665674,1759777844715,-5470.28,0.00029821,7]
[389665675,1759777844725,-2180.61,0.00029821,7]
[389665676,1759777844734,-2180.61,0.00029821,7]
[389665677,1759777844744,-1634.57835756,0.00029825,7]
[389665678,1759777844754,-15703.95,0.00029827,7]
[389665679,1759777844764,-15703.95,0.00029827,7]
[389665680,1759777844774,-15703.95,0.00029827,7]
[389665681,1759777844785,-15703.95,0.00029827,7]
[389665682,1759777844796,-15704.05432625,0.00029827,7]
[389665683,1759777844806,-1000.0,0.00029827,8]
[389665684,1759777844817,-1000.0,0.00029827,5]
[389665685,1759777844827,-150.0,0.00029828,2]
[389665686,1759777844837,-28932.01671802,0.00029828,7]
[389665687,1759777844848,-5470.28,0.00029828,7]
[389665688,1759777844858,-5470.28,0.00029828,7]
[389665689,1759777844869,-5470.28,0.00029828,7]
[389665690,1759777844878,-5470.28,0.00029828,7]
[389665691,1759777844889,-5470.28,0.00029828,7]
[389665692,1759777844899,-5470.28,0.00029828,7]
[389665693,1759777844909,-5470.28,0.00029828,7]
[389665694,1759777844919,-5470.28,0.00029828,7]
[389665695,1759777844930,-5470.28,0.00029828,7]
[389665696,1759777844941,-5470.28,0.00029828,7]
[389665697,1759777844952,-5470.28,0.00029828,7]
[389665698,1759777844964,-5470.28,0.00029828,7]
[389665699,1759777844974,-5470.28,0.00029828,7]
[389665700,1759777844983,-5470.28,0.00029828,7]
[389665701,1759777844994,-151.0,0.00029829,5]
[389665702,1759777845005,-151.0,0.00029829,5]
[389665703,1759777845016,-151.0,0.00029829,5]
[389665704,1759777845027,-151.0,0.00029829,5]
[389665705,1759777845038,-151.0,0.00029829,5]
[389665706,1759777845048,-245.0,0.00029829,5]
[389665707,1759777845058,-500.0,0.00029829,7]
[389665708,1759777845068,-500.0,0.00029829,7]
[389665709,1759777845077,-1000.0,0.00029829,30]
[389665710,1759777845087,-500.0,0.00029829,7]
[389665711,1759777845097,-500.0,0.00029829,7]
[389665712,1759777845107,-505.60072778,0.00029829,7]
[389665713,1759777845116,-500.0,0.00029829,7]
[389665714,1759777845126,-5470.28,0.00029829,7]
[389665715,1759777845136,-5470.28,0.00029829,7]
[389665716,1759777845146,-5470.28,0.00029829,7]
[389665717,1759777845156,-5470.28,0.00029829,7]
[389665718,1759777845166,-5470.28,0.00029829,7]
[389665719,1759777845175,-5470.29605353,0.00029829,7]
[389665720,1759777845186,-2180.61,0.00029829,7]
[389665721,1759777845201,-630.58913309,0.0002983,7]
[389665722,1759777845212,-500.0,0.0002983,7]
[389665723,1759777845223,-400.31669933,0.0002983,7]
[389665724,1759777845233,-500.0,0.0002983,7]
[389665725,1759777845245,-295.06146643,0.0002983,7]
[389665726,1759777845255,-717.6,0.0002983,7]
[389665727,1759777845265,-717.6,0.0002983,7]
[389665728,1759777845274,-717.6,0.0002983,7]
[389665729,1759777845285,-717.6,0.0002983,7]
[389665730,1759777845294,-717.6,0.0002983,7]
[389665731,1759777845304,-151.0,0.0002983,30]
[389665732,1759777845314,-157.233766,0.0002983,30]
[389665734,1759777845324,-151.0,0.0002983,30]
[389665736,1759777845333,-151.0,0.0002983,30]
[389665737,1759777845343,-151.0,0.0002983,30]
[389665738,1759777845353,-151.0,0.0002983,30]
[389665739,1759777845362,-354.378774,0.0002983,30]
[389665740,1759777845371,-151.0,0.0002983,30]
[389665741,1759777845386,-354.378774,0.0002983,30]
[389665742,1759777845399,-354.378774,0.0002983,30]
[389665743,1759777845412,-345.516141,0.0002983,30]
[389665744,1759777845423,-151.0,0.0002983,30]
[389665745,1759777845436,-354.378774,0.0002983,30]
[389665746,1759777845446,-345.516141,0.0002983,30]
[389665747,1759777845456,-151.0,0.0002983,30]
[389665748,1759777845469,-345.516141,0.0002983,30]
[389665749,1759777845481,-151.0,0.0002983,30]
[389665750,1759777845492,-151.0,0.0002983,30]
[389665751,1759777845503,-151.0,0.0002983,30]
[389665752,1759777845514,-345.516141,0.0002983,30]
[389665753,1759777845523,-151.0,0.0002983,30]
[389665754,1759777845537,-151.0,0.0002983,30]
[389665755,1759777845548,-151.0,0.0002983,30]
[389665756,1759777845558,-241.644586,0.0002983,30]
[389665757,1759777845567,-151.0,0.0002983,30]
[389665758,1759777845578,-241.644586,0.0002983,30]
[389665759,1759777845589,-500.0,0.0002983,7]
[389665760,1759777845599,-241.644586,0.0002983,30]
[389665761,1759777845608,-241.644586,0.0002983,30]
[389665762,1759777845618,-151.0,0.0002983,30]
[389665763,1759777845627,-151.0,0.0002983,30]
[389665764,1759777845637,-151.0,0.0002983,30]
[389665765,1759777845646,-151.0,0.0002983,30]
[389665766,1759777845658,-187.28884,0.0002983,30]
[389665767,1759777845667,-151.0,0.0002983,30]
[389665768,1759777845678,-187.28884,0.0002983,30]
[389665769,1759777845688,-151.0,0.0002983,30]
[389665770,1759777845698,-187.28884,0.0002983,30]
[389665771,1759777845708,-187.28884,0.0002983,30]
[389665772,1759777845720,-151.0,0.0002983,30]
[389665773,1759777845730,-151.0,0.0002983,30]
[389665774,1759777845739,-151.0,0.0002983,30]
[389665775,1759777845748,-151.0,0.0002983,30]
[389665776,1759777845758,-151.0,0.0002983,30]
[389665777,1759777845767,-151.0,0.0002983,30]
[389665778,1759777845779,-151.0,0.0002983,30]
[389665779,1759777845788,-1000.0,0.0002983,30]
[389665780,1759777845797,-1000.0,0.0002983,30]
[389665781,1759777845807,-151.0,0.0002983,30]
[389665782,1759777845816,-1000.0,0.0002983,30]
[389665783,1759777845825,-1000.0,0.0002983,30]
[389665784,1759777845835,-1000.0,0.0002983,30]
[389665785,1759777845844,-975.0076084,0.0002983,30]
[389665786,1759777845853,-151.0,0.0002983,30]
[389665787,1759777845863,-151.0,0.0002983,30]
[389665788,1759777845872,-151.0,0.0002983,30]
[389665790,1759777845881,-151.0,0.0002983,30]
[389665791,1759777845890,-151.0,0.0002983,30]
[389665792,1759777845899,-151.0,0.0002983,30]
[389665793,1759777845908,-699.46676082,0.0002983,2]
[389665794,1759777845917,-151.0,0.0002983,30]
[389665795,1759777845926,-151.0,0.0002983,30]
[389665796,1759777845935,-151.0,0.0002983,30]
[389665797,1759777845944,-151.0,0.0002983,30]
[389665798,1759777845952,-151.0,0.0002983,30]
[389665799,1759777845961,-151.0,0.0002983,30]
[389665800,1759777845971,-151.0,0.0002983,30]
[389665801,1759777845980,-151.0,0.0002983,30]
[389665804,1759777845989,-151.0,0.0002983,30]
[389665806,1759777846000,-151.0,0.0002983,30]
[389665808,1759777846010,-151.0,0.0002983,30]
[389665810,1759777846019,-151.0,0.0002983,30]
[389665812,1759777846028,-151.0,0.0002983,2]
[389665814,1759777846037,-151.0,0.0002983,2]
[389665816,1759777846047,-151.0,0.0002983,2]
[389665818,1759777846055,-151.0,0.0002983,2]
[389665820,1759777846064,-151.0,0.0002983,30]
[389665822,1759777846073,-151.0,0.0002983,30]
[389665823,1759777846082,-183.33164386,0.0002983,5]
[389665826,1759777846091,-151.0,0.0002983,30]
[389665829,1759777846100,-151.0,0.0002983,30]
[389665831,1759777846110,-151.0,0.0002983,30]
[389665833,1759777846119,-151.0,0.0002983,30]
[389665835,1759777846128,-151.0,0.0002983,30]
[389665837,1759777846137,-266.96497912,0.0002983,2]
[389665839,1759777846146,-500.0,0.0002983,7]
[389665841,1759777846155,-500.0,0.0002983,7]
[389665843,1759777846165,-500.0,0.0002983,7]
[389665844,1759777846174,-500.0,0.0002983,7]
[389665846,1759777846184,-500.0,0.0002983,7]
[389665848,1759777846194,-500.0,0.0002983,7]
[389665849,1759777846205,-500.0,0.0002983,7]
[389665851,1759777846215,-500.0,0.0002983,7]
[389665852,1759777846225,-410.45,0.0002983,7]
[389665853,1759777846234,-500.0,0.0002983,7]
[389665854,1759777846243,-500.0,0.0002983,7]
[389665855,1759777846257,-500.0,0.0002983,7]